fUST/lending_fUST_20240813
["ID","MTS","AMOUNT","RATE_DAILY","PERIOD"]
[334697692,1723482644981,-520.17764207,0.00015751,2]
[334697694,1723482644991,-500.0,0.00015751,2]
[334697696,1723482645001,-500.0,0.00015751,2]
[334697698,1723482645010,-151.0,0.00015751,2]
[334697700,1723482645020,-500.0,0.00015751,2]
[334697701,1723482645031,-500.0,0.00015751,2]
[334697703,1723482645040,-500.0,0.00015751,2]
[334697705,1723482645050,-500.0,0.00015751,2]
[334697707,1723482645060,-500.0,0.00015751,2]
[334697709,1723482645070,-272.13699748,0.00015751,2]
[334697712,1723482645082,-500.0,0.00015751,2]
[334697714,1723482645093,-586.32,0.00015751,2]
[334697716,1723482645102,-500.0,0.00015751,2]
[334697718,1723482645112,-500.0,0.00015751,2]
[334697720,1723482645121,-500.0,0.00015751,2]
[334697722,1723482645130,-2029.92,0.00015751,2]
[334697723,1723482645140,-500.0,0.00015751,2]
[334697725,1723482645149,-500.0,0.00015751,2]
[334697727,1723482645159,-500.0,0.00015751,2]
[334697729,1723482645169,-500.0,0.00015751,2]
[334697731,1723482645179,-500.0,0.00015751,2]
[334697733,1723482645189,-500.0,0.00015751,2]
[334697735,1723482645200,-151.0,0.00015751,2]
[334697737,1723482645210,-193.406054,0.00015751,2]
[334697739,1723482645219,-777.817956,0.00015751,2]
[334697741,1723482645230,-151.0,0.00015751,2]
[334697743,1723482645241,-777.817956,0.00015751,2]
[334697745,1723482645251,-151.0,0.00015751,2]
[334697747,1723482645261,-630.083693,0.00015751,2]
[334697749,1723482645271,-630.083693,0.00015751,2]
[334697752,1723482645282,-151.0,0.00015751,2]
[334697753,1723482645291,-151.0,0.00015751,2]
[334697755,1723482645302,-151.0,0.00015751,2]
[334697757,1723482645312,-151.0,0.00015751,2]
[334697759,1723482645322,-1993.66421949,0.00015751,2]
[334697761,1723482645333,-4569.48,0.00015759,2]
[334697764,1723482645342,-4569.48,0.00015759,2]
[334697765,1723482645352,-4569.48,0.00015759,2]
[334697767,1723482645362,-4569.48,0.00015759,2]
[334697769,1723482645372,-4569.61009961,0.00015759,2]
[334697772,1723482645382,-151.0,0.00015759,2]
[334697774,1723482645391,-151.0,0.00015759,2]
[334697776,1723482645404,-239.368304,0.00015759,2]
[334697778,1723482645414,-500.0,0.0001576,2]
[334697780,1723482645424,-500.0,0.0001576,2]
[334697782,1723482645434,-511.6,0.0001576,2]
[334697784,1723482645445,-151.0,0.0001576,2]
[334697786,1723482645457,-156.180285,0.0001576,2]
[334697788,1723482645468,-645.31,0.0001576,2]
[334697790,1723482645478,-469.82258987,0.0001576,2]
[334697793,1723482645490,-646.51,0.0001576,2]
[334697795,1723482645503,-500.0,0.0001576,2]
[334697797,1723482645513,-571.25,0.0001576,2]
[334697799,1723482645524,-151.0,0.0001576,2]
[334697801,1723482645534,-500.0,0.0001576,2]
[334697803,1723482645543,-500.0,0.0001576,2]
[334697805,1723482645553,-500.0,0.0001576,2]
[334697807,1723482645563,-500.0,0.0001576,2]
[334697809,1723482645574,-974.88,0.0001576,2]
[334697811,1723482645583,-500.0,0.0001576,2]
[334697813,1723482645593,-500.0,0.0001576,2]
[334697815,1723482645603,-1271.71,0.0001576,2]
[334697817,1723482645612,-500.0,0.0001576,2]
[334697819,1723482645622,-151.0,0.0001576,2]
[334697821,1723482645632,-151.0,0.0001576,2]
[334697823,1723482645643,-500.0,0.0001576,2]
[334697844,1723482645838,-500.0,0.0001576,2]
[334697847,1723482645848,-503.77,0.0001576,2]
[334697849,1723482645858,-315.113272,0.0001576,2]
[334697851,1723482645868,-315.113272,0.0001576,2]
[334697853,1723482645877,-667.51,0.0001576,2]
[334697855,1723482645887,-151.0,0.0001576,2]
[334697857,1723482645897,-500.0,0.0001576,2]
[334697858,1723482645906,-1036.64,0.0001576,2]
[334697860,1723482645916,-939.18,0.0001576,2]
[334697863,1723482645926,-501.81,0.0001576,2]
[334697865,1723482645935,-500.0,0.0001576,2]
[334697867,1723482645945,-500.0,0.0001576,2]
[334697869,1723482645954,-500.0,0.0001576,2]
[334697871,1723482645964,-500.0,0.0001576,2]
[334697873,1723482645975,-541.47,0.0001576,2]
[334697875,1723482645984,-500.0,0.0001576,2]
[334697877,1723482645993,-807.73,0.0001576,2]
[334697879,1723482646003,-1252.91,0.0001576,2]
[334697881,1723482646014,-1195.46,0.0001576,2]
[334697883,1723482646023,-459.209408,0.0001576,2]
[334697885,1723482646033,-297.823317,0.0001576,2]
[334697886,1723482646042,-459.209408,0.0001576,2]
[334697888,1723482646053,-297.823317,0.0001576,2]
[334697890,1723482646062,-151.0,0.0001576,2]
[334697892,1723482646072,-291.76155,0.0001576,2]
[334697894,1723482646082,-291.76155,0.0001576,2]
[334697896,1723482646091,-500.0,0.0001576,2]
[334697898,1723482646102,-503.41868629,0.0001576,2]
[334697900,1723482646111,-1858.24,0.0001576,2]
[334697902,1723482646122,-500.0,0.0001576,2]
[334697904,1723482646131,-1085.46,0.0001576,2]
[334697907,1723482646141,-544.52894034,0.0001576,2]
[334697910,1723482646151,-500.0,0.0001576,2]
[334697913,1723482646160,-500.0,0.0001576,2]
[334697916,1723482646172,-536.53,0.0001576,2]
[334697919,1723482646181,-352.759384,0.0001576,2]
[334697922,1723482646191,-352.759384,0.0001576,2]
[334697926,1723482646200,-285.444046,0.0001576,2]
[334697930,1723482646210,-245.600801,0.00015762,2]
[334697935,1723482646219,-1000.0,0.00015793,2]
[334697940,1723482646229,-150.112233,0.000158,2]
[334697944,1723482646238,-1000.0,0.00015804,2]
[334697947,1723482646247,-5322.59176007,0.00015806,2]
[334697951,1723482646257,-352.759384,0.00015851,2]
[334697954,1723482646267,-352.759384,0.00015851,2]
[334697959,1723482646277,-285.444046,0.00015851,2]
[334697962,1723482646287,-165.71411466,0.00015851,2]
[334697965,1723482646298,-1109.82295728,0.00015851,2]
[334697968,1723482646311,-28314.27042375,0.00015867,2]
[334697971,1723482646321,-777.817956,0.00015867,2]
[334697974,1723482646331,-151.0,0.00015867,2]
[334697976,1723482646340,-777.817956,0.00015867,2]
[334697979,1723482646351,-151.0,0.00015867,2]
[334697982,1723482646361,-630.083693,0.00015867,2]
[334697986,1723482646370,-630.083693,0.00015867,2]
[334697989,1723482646380,-151.0,0.00015867,2]
[334697992,1723482646390,-151.0,0.00015867,2]
[334697995,1723482646399,-151.0,0.00015867,2]
[334697998,1723482646410,-151.0,0.00015867,2]
[334698001,1723482646420,-1000.0,0.00015902,2]
[334698004,1723482646430,-1000.0,0.00015914,2]
[334698007,1723482646440,-1000.0,0.00015915,2]
[334698010,1723482646453,-151.0,0.00015951,2]
[334698013,1723482646463,-151.0,0.00015951,2]
[334698016,1723482646472,-42383.12825852,0.00015951,2]
[334698019,1723482646482,-2126.66267952,0.00015952,2]
[334698022,1723482646492,-2126.66267952,0.00015952,2]
[334698025,1723482646501,-1384.31526916,0.00015952,2]
[334698028,1723482646510,-248.98752278,0.00015952,2]
[334698031,1723482646521,-196.66577865,0.00015952,2]
[334698033,1723482646530,-205.39379948,0.00015952,2]
[334698036,1723482646540,-154.71377951,0.00015952,2]
[334698039,1723482646550,-151.0,0.00015953,2]
[334698042,1723482646559,-520.09681302,0.00015954,2]
[334698044,1723482646569,-414.16414531,0.00015954,2]
[334698048,1723482646581,-159.40070578,0.00015954,2]
[334698051,1723482646591,-265.99065928,0.00015954,2]
[334698054,1723482646603,-347.89260852,0.00015954,2]
[334698056,1723482646614,-210.07711325,0.00015954,2]
[334698059,1723482646625,-180.6866484,0.00015954,2]
[334698060,1723482646634,-1000.0,0.00015993,2]
[334698061,1723482646644,-150.112233,0.00016,2]
[334698062,1723482646654,-710.5593929,0.00016,2]
[334698063,1723482646663,-153.0,0.00016,2]
[334698064,1723482646673,-1000.0,0.00016002,2]
[334698065,1723482646682,-1210.57,0.00016003,2]
[334698066,1723482646692,-806.72,0.00016003,2]
[334698067,1723482646702,-500.0,0.00016013,2]
[334698068,1723482646711,-2139.99,0.00016013,2]
[334698069,1723482646722,-8033.28,0.00016013,2]
[334698070,1723482646731,-873.01,0.00016013,2]
[334698071,1723482646740,-1377.31,0.00016013,2]
[334698072,1723482646751,-944.83,0.00016013,2]
[334698074,1723482646761,-500.0,0.00016014,2]
[334698076,1723482646770,-4309.2,0.00016014,2]
[334698078,1723482646780,-1327.45,0.00016014,2]
[334698080,1723482646789,-1061.79,0.00016014,2]
[334698082,1723482646800,-459.209408,0.00016014,2]
[334698084,1723482646810,-297.823317,0.00016014,2]
[334698086,1723482646819,-459.209408,0.00016014,2]
[334698088,1723482646829,-297.823317,0.00016014,2]
[334698089,1723482646839,-291.76155,0.00016014,2]
[334698090,1723482646850,-291.76155,0.00016014,2]
[334698091,1723482646860,-4692.37,0.00016014,2]
[334698092,1723482646871,-500.0,0.00016014,2]
[334698093,1723482646880,-1301.15,0.00016014,2]
[334698094,1723482646890,-500.0,0.00016014,2]
[334698095,1723482646899,-1477.48,0.00016014,2]
[334698096,1723482646910,-1537.7,0.00016014,2]
[334698097,1723482646920,-500.0,0.00016014,2]
[334698098,1723482646932,-1492.05,0.00016014,2]
[334698099,1723482646944,-7818.96,0.00016014,2]
[334698100,1723482646955,-2345.86,0.00016014,2]
[334698101,1723482646964,-1440.32,0.00016014,2]
[334698102,1723482646974,-1481.47,0.00016014,2]
[334698103,1723482646984,-500.0,0.00016014,2]
[334698104,1723482646993,-547.14,0.00016014,2]
[334698105,1723482647003,-757.41,0.00016014,2]
[334698106,1723482647014,-500.0,0.00016014,2]
[334698107,1723482647024,-1373.41,0.00016014,2]
[334698108,1723482647034,-185.40469182,0.00016014,2]
[334698109,1723482647044,-151.0,0.00016015,2]
[334698110,1723482647056,-151.0,0.00016015,2]
[334698111,1723482647066,-315.113272,0.00016015,2]
[334698112,1723482647076,-315.113272,0.00016015,2]
[334698113,1723482647086,-500.0,0.00016023,2]
[334698115,1723482647096,-500.0,0.00016023,2]
[334698117,1723482647106,-500.0,0.00016023,2]
[334698119,1723482647116,-625.40784173,0.00016024,2]
[334698121,1723482647127,-500.0,0.00016024,2]
[334698123,1723482647137,-500.0,0.00016024,2]
[334698125,1723482647147,-623.12,0.00016024,2]
[334698127,1723482647157,-500.0,0.00016024,2]
[334698129,1723482647167,-500.0,0.00016024,2]
[334698131,1723482647177,-552.72,0.00016024,2]
[334698133,1723482647187,-672.42,0.00016024,2]
[334698135,1723482647196,-599.83,0.00016024,2]
[334698137,1723482647206,-500.0,0.00016024,2]
[334698139,1723482647216,-500.0,0.00016024,2]
[334698141,1723482647225,-500.0,0.00016024,2]
[334698143,1723482647235,-500.0,0.00016024,2]
[334698145,1723482647244,-500.0,0.00016024,2]
[334698147,1723482647253,-791.7,0.00016024,2]
[334698149,1723482647263,-996.77,0.00016024,2]
[334698151,1723482647272,-500.0,0.00016024,2]
[334698153,1723482647281,-500.0,0.00016024,2]
[334698155,1723482647291,-153.098448,0.00016024,2]
[334698157,1723482647300,-151.0,0.00016024,2]
[334698159,1723482647310,-500.0,0.00016024,2]
[334698161,1723482647320,-500.0,0.00016024,2]
[334698163,1723482647329,-500.0,0.00016024,2]
[334698165,1723482647339,-500.0,0.00016024,2]
[334698167,1723482647348,-805.23,0.00016024,2]
[334698169,1723482647357,-500.0,0.00016024,2]
[334698171,1723482647367,-500.0,0.00016024,2]
[334698173,1723482647377,-576.76,0.00016024,2]
[334698175,1723482647386,-500.0,0.00016024,2]
[334698177,1723482647396,-818.86,0.00016024,2]
[334698179,1723482647406,-792.06,0.00016024,2]
[334698181,1723482647415,-500.0,0.00016024,2]
[334698183,1723482647425,-777.817956,0.00016024,2]
[334698185,1723482647434,-151.0,0.00016024,2]
[334698187,1723482647446,-777.817956,0.00016024,2]
[334698189,1723482647458,-1169.81,0.00016024,2]
[334698191,1723482647467,-500.0,0.00016024,2]
[334698194,1723482647476,-989.58,0.00016024,2]
[334698195,1723482647486,-777.48,0.00016024,2]
[334698198,1723482647496,-500.0,0.00016024,2]
[334698200,1723482647507,-532.92,0.00016024,2]
[334698202,1723482647518,-500.0,0.00016024,2]
[334698204,1723482647531,-4589.52,0.00016024,2]
[334698206,1723482647542,-1073.29,0.00016024,2]
[334698208,1723482647553,-862.57,0.00016024,2]
[334698210,1723482647564,-1199.42,0.00016024,2]
[334698212,1723482647573,-500.0,0.00016024,2]
[334698214,1723482647583,-500.0,0.00016024,2]
[334698216,1723482647593,-856.91,0.00016024,2]
[334698218,1723482647602,-502.53,0.00016024,2]
[334698221,1723482647612,-646.48,0.00016024,2]
[334698223,1723482647623,-5542.73,0.00016024,2]
[334698225,1723482647633,-500.0,0.00016024,2]
[334698227,1723482647645,-500.0,0.00016024,2]
[334698229,1723482647656,-500.0,0.00016024,2]
[334698231,1723482647665,-797.12,0.00016024,2]
[334698233,1723482647674,-500.0,0.00016024,2]
[334698235,1723482647683,-1028.7,0.00016024,2]
[334698237,1723482647692,-500.0,0.00016024,2]
[334698239,1723482647702,-151.0,0.00016024,2]
[334698241,1723482647713,-247.36671741,0.00016024,2]
[334698244,1723482647723,-531.41,0.00016024,2]
[334698246,1723482647735,-693.01,0.00016024,2]
[334698248,1723482647746,-603.87,0.00016024,2]
[334698250,1723482647758,-2310.68,0.00016024,2]
[334698252,1723482647767,-630.083693,0.00016024,2]
[334698254,1723482647776,-500.0,0.00016024,2]
[334698256,1723482647786,-500.0,0.00016024,2]
[334698258,1723482647795,-630.083693,0.00016024,2]
[334698260,1723482647805,-3390.01,0.00016024,2]
[334698262,1723482647815,-500.0,0.00016024,2]
[334698264,1723482647826,-564.83,0.00016024,2]
[334698266,1723482647835,-500.0,0.00016024,2]
[334698268,1723482647844,-500.0,0.00016024,2]
[334698270,1723482647854,-151.0,0.00016024,2]
[334698272,1723482647863,-683.57,0.00016024,2]
[334698274,1723482647873,-151.0,0.00016024,2]
[334698275,1723482647882,-1023.44,0.00016024,2]
[334698278,1723482647892,-151.0,0.00016024,2]
[334698280,1723482647902,-500.0,0.00016024,2]
[334698282,1723482647913,-255.184324,0.00016024,2]
[334698284,1723482647923,-500.0,0.00016024,2]
[334698286,1723482647933,-500.0,0.00016024,2]
[334698287,1723482647943,-500.0,0.00016024,2]
[334698289,1723482647953,-500.0,0.00016024,2]
[334698291,1723482647962,-500.0,0.00016024,2]
[334698293,1723482647972,-500.0,0.00016024,2]
[334698295,1723482647981,-500.0,0.00016024,2]
[334698297,1723482647990,-500.0,0.00016024,2]
[334698299,1723482648000,-617.79,0.00016024,2]
[334698301,1723482648010,-500.0,0.00016024,2]
[334698303,1723482648019,-151.0,0.00016024,2]
[334698305,1723482648030,-500.0,0.00016024,2]
[334698307,1723482648040,-500.0,0.00016024,2]
[334698309,1723482648050,-151.0,0.00016024,2]
[334698311,1723482648060,-500.0,0.00016024,2]
[334698313,1723482648070,-500.0,0.00016024,2]
[334698315,1723482648082,-874.28,0.00016024,2]
[334698316,1723482648091,-500.0,0.00016024,2]
[334698318,1723482648100,-1051.56,0.00016024,2]
[334698320,1723482648108,-710.59,0.00016024,2]
[334698322,1723482648118,-906.67,0.00016024,2]
[334698324,1723482648127,-2754.73,0.00016024,2]
[334698326,1723482648137,-500.0,0.00016024,2]
[334698328,1723482648147,-352.759384,0.00016024,2]
[334698330,1723482648156,-352.759384,0.00016024,2]
[334698332,1723482648165,-500.0,0.00016024,2]
[334698334,1723482648175,-1195.26,0.00016024,2]
[334698336,1723482648184,-500.0,0.00016024,2]
[334698337,1723482648193,-191.90349395,0.00016025,2]
[334698338,1723482648202,-834.44,0.00016025,2]
[334698339,1723482648212,-564.98108192,0.00016025,2]
[334698340,1723482648221,-500.0,0.00016025,2]
[334698341,1723482648230,-500.0,0.00016025,2]
[334698342,1723482648239,-500.0,0.00016025,2]
[334698343,1723482648248,-500.0,0.00016025,2]
[334698344,1723482648258,-500.0,0.00016025,2]
[334698345,1723482648267,-500.0,0.00016025,2]
[334698346,1723482648277,-500.0,0.00016025,2]
[334698347,1723482648287,-500.0,0.00016025,2]
[334698348,1723482648297,-558.32800564,0.00016025,2]
[334698349,1723482648307,-579.12,0.00016025,2]
[334698350,1723482648317,-500.0,0.00016025,2]
[334698351,1723482648327,-500.0,0.00016025,2]
[334698352,1723482648337,-500.0,0.00016025,2]
[334698353,1723482648347,-500.0,0.00016025,2]
[334698354,1723482648358,-500.0,0.00016025,2]
[334698355,1723482648367,-500.0,0.00016025,2]
[334698357,1723482648376,-500.0,0.00016025,2]
[334698358,1723482648385,-586.32,0.00016025,2]
[334698360,1723482648395,-500.0,0.00016025,2]
[334698362,1723482648404,-500.0,0.00016025,2]
[334698364,1723482648415,-500.0,0.00016025,2]
[334698366,1723482648425,-2029.92,0.00016025,2]
[334698368,1723482648435,-500.0,0.00016025,2]
[334698370,1723482648447,-500.0,0.00016025,2]
[334698372,1723482648457,-500.0,0.00016025,2]
[334698374,1723482648467,-500.0,0.00016025,2]
[334698376,1723482648477,-500.0,0.00016025,2]
[334698378,1723482648486,-500.0,0.00016025,2]
[334698380,1723482648495,-459.209408,0.00016025,2]
[334698383,1723482648505,-297.823317,0.00016025,2]
[334698385,1723482648515,-459.209408,0.00016025,2]
[334698387,1723482648526,-297.823317,0.00016025,2]
[334698389,1723482648536,-291.76155,0.00016025,2]
[334698391,1723482648545,-291.76155,0.00016025,2]
[334698393,1723482648555,-500.0,0.00016034,2]
[334698395,1723482648565,-500.0,0.00016034,2]
[334698397,1723482648574,-511.6,0.00016034,2]
[334698399,1723482648587,-645.31,0.00016034,2]
[334698401,1723482648604,-646.51,0.00016034,2]
[334698403,1723482648614,-500.0,0.00016034,2]
[334698405,1723482648625,-571.25,0.00016034,2]
[334698407,1723482648635,-500.0,0.00016034,2]
[334698409,1723482648645,-500.0,0.00016034,2]
[334698411,1723482648655,-500.0,0.00016034,2]
[334698413,1723482648666,-500.0,0.00016034,2]
[334698416,1723482648675,-974.88,0.00016034,2]
[334698417,1723482648685,-500.0,0.00016034,2]
[334698419,1723482648694,-500.0,0.00016034,2]
[334698421,1723482648705,-1271.71,0.00016034,2]
[334698424,1723482648716,-500.0,0.00016034,2]
[334698426,1723482648726,-151.0,0.00016034,2]
[334698428,1723482648736,-151.0,0.00016034,2]
[334698430,1723482648747,-500.0,0.00016034,2]
[334698432,1723482648755,-500.0,0.00016034,2]
[334698434,1723482648765,-503.77,0.00016034,2]
[334698436,1723482648775,-315.113272,0.00016034,2]
[334698438,1723482648786,-315.113272,0.00016034,2]
[334698440,1723482648795,-667.51,0.00016034,2]
[334698442,1723482648805,-500.0,0.00016034,2]
[334698444,1723482648815,-1036.64,0.00016034,2]
[334698446,1723482648824,-939.18,0.00016034,2]
[334698448,1723482648841,-501.81,0.00016034,2]
[334698450,1723482648851,-500.0,0.00016034,2]
[334698452,1723482648860,-500.0,0.00016034,2]
[334698454,1723482648869,-500.0,0.00016034,2]
[334698456,1723482648877,-500.0,0.00016034,2]
[334698458,1723482648887,-541.47,0.00016034,2]
[334698459,1723482648896,-807.73,0.00016034,2]
[334698461,1723482648906,-1252.91,0.00016034,2]
[334698462,1723482648915,-1195.46,0.00016034,2]
[334698464,1723482648925,-500.0,0.00016034,2]
[334698466,1723482648934,-1858.24,0.00016034,2]
[334698468,1723482648944,-500.0,0.00016034,2]
[334698470,1723482648954,-1085.46,0.00016034,2]
[334698472,1723482648963,-500.0,0.00016034,2]
[334698474,1723482648973,-500.0,0.00016034,2]
[334698476,1723482648983,-536.53,0.00016034,2]
[334698478,1723482648992,-151.0,0.00016034,2]
[334698480,1723482649002,-151.0,0.00016034,2]
[334698482,1723482649011,-352.759384,0.00016034,2]
[334698484,1723482649144,-352.759384,0.00016034,2]
[334698485,1723482649155,-777.817956,0.00016035,2]
[334698486,1723482649165,-272.904664,0.00016035,2]
[334698487,1723482649175,-777.817956,0.00016035,2]
[334698488,1723482649185,-1272.89465477,0.00016038,2]
[334698489,1723482649194,-154.76012181,0.00016038,2]
[334698490,1723482649204,-288.02845211,0.00016038,2]
[334698491,1723482649214,-1164.02523181,0.00016038,2]
[334698492,1723482649224,-156.87111249,0.00016038,2]
[334698493,1723482649233,-694.80973434,0.00016038,2]
[334698494,1723482649243,-154.71377951,0.00016038,2]
[334698495,1723482649253,-151.0,0.00016038,2]
[334698496,1723482649262,-151.0,0.00016038,2]
[334698497,1723482649272,-315.113272,0.00016038,2]
[334698498,1723482649281,-315.113272,0.00016038,2]
[334698499,1723482649291,-151.0,0.00016038,2]
[334698500,1723482649301,-630.083693,0.00016038,2]
[334698501,1723482649311,-630.083693,0.00016038,2]
[334698502,1723482649321,-151.0,0.00016038,2]
[334698503,1723482649339,-151.0,0.00016038,2]
[334698504,1723482649349,-151.0,0.00016038,2]
[334698505,1723482649358,-1000.0,0.00016038,2]
[334698506,1723482649368,-1000.0,0.00016038,2]
[334698507,1723482649377,-1000.0,0.00016038,2]
[334698508,1723482649387,-1000.0,0.00016038,2]
[334698509,1723482649398,-1000.0,0.00016038,2]
[334698510,1723482649407,-1000.0,0.00016038,2]
[334698511,1723482649417,-1000.0,0.00016038,2]
[334698512,1723482649427,-1000.0,0.00016038,2]
[334698513,1723482649438,-1000.0,0.00016038,2]
[334698514,1723482649454,-1000.0,0.00016038,2]
[334698515,1723482649463,-1000.0,0.00016038,2]
[334698516,1723482649473,-1000.0,0.00016038,2]
[334698517,1723482649484,-1000.0,0.00016038,2]
[334698518,1723482649494,-1000.0,0.00016038,2]
[334698519,1723482649503,-1000.0,0.00016038,2]
[334698520,1723482649512,-484.045801,0.00016038,2]
[334698521,1723482649522,-200.0,0.00016073,2]
[334698522,1723482649532,-459.209408,0.00016094,2]
[334698523,1723482649542,-297.823317,0.00016094,2]
[334698524,1723482649552,-459.209408,0.00016094,2]
[334698525,1723482649562,-297.823317,0.00016094,2]
[334698526,1723482649571,-291.76155,0.00016094,2]
[334698527,1723482649587,-291.76155,0.00016094,2]
[334698528,1723482649596,-2164.74871652,0.00016095,2]
[334698529,1723482649605,-154.76012181,0.00016095,2]
[334698530,1723482649614,-188.40491976,0.00016095,2]
[334698531,1723482649623,-1092.59843641,0.00016095,2]
[334698532,1723482649632,-1404.78014083,0.00016095,3]
[334698533,1723482649642,-154.76012181,0.00016095,2]
[334698534,1723482649651,-1020.54417991,0.00016095,2]
[334698535,1723482649660,-153.0,0.000161,2]
[334698536,1723482649670,-294.5252441,0.000161,2]
[334698537,1723482649680,-153.0,0.000161,2]
[334698538,1723482649689,-1500.0,0.0001611,2]
[334698539,1723482649698,-208.45850869,0.0001611,2]
[334698540,1723482649708,-208.45850869,0.0001611,2]
[334698541,1723482649717,-352.759384,0.00016159,2]
[334698542,1723482649728,-352.759384,0.00016159,2]
[334698543,1723482649739,-241.04577133,0.00016159,2]
[334698544,1723482649749,-1612.28857669,0.00016159,2]
[334698545,1723482649758,-150.112233,0.000162,2]
[334698546,1723482649768,-153.0,0.000162,2]
[334698547,1723482649777,-1210.57,0.00016277,2]
[334698548,1723482649788,-806.72,0.00016277,2]
[334698549,1723482649797,-500.0,0.00016287,2]
[334698550,1723482649807,-2139.99,0.00016287,2]
[334698551,1723482649816,-8033.28,0.00016287,2]
[334698552,1723482649828,-873.01,0.00016287,2]
[334698553,1723482649838,-1377.31,0.00016287,2]
[334698554,1723482649847,-944.83,0.00016287,2]
[334698555,1723482649856,-500.0,0.00016288,2]
[334698556,1723482649867,-4309.2,0.00016288,2]
[334698557,1723482649877,-1327.45,0.00016288,2]
[334698558,1723482649887,-1061.79,0.00016288,2]
[334698559,1723482649897,-4692.37,0.00016288,2]
[334698560,1723482649908,-500.0,0.00016288,2]
[334698561,1723482649917,-1301.15,0.00016288,2]
[334698562,1723482649927,-500.0,0.00016288,2]
[334698563,1723482649937,-1477.48,0.00016288,2]
[334698564,1723482649947,-1537.7,0.00016288,2]
[334698565,1723482649959,-1492.05,0.00016288,2]
[334698566,1723482649968,-7818.96,0.00016288,2]
[334698567,1723482649978,-2345.86,0.00016288,2]
[334698568,1723482649987,-1440.32,0.00016288,2]
[334698569,1723482649997,-1481.47,0.00016288,2]
[334698570,1723482650007,-500.0,0.00016288,2]
[334698571,1723482650018,-547.14,0.00016288,2]
[334698572,1723482650028,-757.41,0.00016288,2]
[334698573,1723482650038,-500.0,0.00016288,2]
[334698574,1723482650048,-1373.41,0.00016288,2]
[334698575,1723482650059,-500.0,0.00016297,2]
[334698576,1723482650069,-500.0,0.00016297,2]
[334698577,1723482650082,-500.0,0.00016297,2]
[334698578,1723482650091,-152.797487,0.00016298,2]
[334698579,1723482650101,-151.0,0.00016298,2]
[334698580,1723482650110,-500.0,0.00016298,2]
[334698581,1723482650119,-500.0,0.00016298,2]
[334698582,1723482650128,-623.12,0.00016298,2]
[334698583,1723482650138,-500.0,0.00016298,2]
[334698584,1723482650147,-500.0,0.00016298,2]
[334698585,1723482650157,-552.72,0.00016298,2]
[334698586,1723482650168,-672.42,0.00016298,2]
[334698587,1723482650177,-599.83,0.00016298,2]
[334698588,1723482650187,-500.0,0.00016298,2]
[334698589,1723482650197,-500.0,0.00016298,2]
[334698590,1723482650206,-500.0,0.00016298,2]
[334698591,1723482650216,-500.0,0.00016298,2]
[334698592,1723482650226,-500.0,0.00016298,2]
[334698593,1723482650236,-791.7,0.00016298,2]
[334698594,1723482650245,-996.77,0.00016298,2]
[334698595,1723482650255,-500.0,0.00016298,2]
[334698596,1723482650265,-500.0,0.00016298,2]
[334698597,1723482650274,-500.0,0.00016298,2]